Cogmind - Beta 14 @@@ ROGUE MODE // 2024.10.27 @ 08:42:33 Player: toydarian Result: Destroyed by L-31 Rogue with Katana Performance ------------- Evolutions (2) 1000 Regions Visited (7) 1400 Robots Destroyed (87) 435 Value Destroyed (2980) 2980 Prototype IDs (5) 100 Alien Tech Used (0) 0 Bonus (573) 573 TOTAL SCORE: 6488 Bonus ------- High Alert Combat Kills 199 Follower Combat Kills 74 Aligned with FarCom 300 Cogmind --------- Core Integrity 0/550 Matter 148/300 Energy 265/265 System Corruption 2% Temperature Danger (431) Movement Treading (170) Location -8/Materials Parts ------- > --- POWER (1) -------- Reinforced Ion Engine > --- PROPULSION (4) --- Armored Treads Armored Treads Armored Treads > --- UTILITY (4) ------ Large Storage Unit Targeting Computer Improved Utility Shielding > --- WEAPON (2) ------- Particle Gun Mini Grenade Launcher > --- INVENTORY (15) --- Improved Ion Engine Improved Ion Engine Light Treads Improved Flight Unit Cesium-ion Thruster High-capacity Matter Pod (200) Hacking Suite Hacking Suite System Shield Rocket Launcher Rocket Launcher Field Lobotomy Kit (5) Mace Peak State ------------ > --- POWER ------------ Reinforced Ion Engine > --- PROPULSION ------- Armored Treads Armored Treads Armored Treads Armored Treads > --- UTILITY ---------- Large Storage Unit Targeting Computer Improved Utility Shielding Improved Light Armor Plating > --- WEAPON ----------- Assault Rifle Heavy Assault Rifle > --- INVENTORY -------- Improved Ion Engine Improved Ion Engine Light Treads Improved Flight Unit Cesium-ion Thruster High-capacity Matter Pod Hacking Suite Hacking Suite System Shield Particle Gun Rocket Launcher Rocket Launcher Mini Grenade Launcher Field Lobotomy Kit Mace [Rating: 29] Favorites ----------- Power Ion Engine Engine Ion Engine Power Core Light Nuclear Core Propulsion Light Treads Treads Light Treads Leg Aluminum Leg Wheel Wheel Flight Unit Improved Flight Unit Utility Large Storage Unit Device Improved Heat Sink Storage Large Storage Unit Processor Targeting Computer Protection Core Shielding Weapon Beam Rifle Energy Gun Beam Rifle Energy Cannon Beam Cannon Ballistic Gun Heavy Assault Rifle Ballistic Cannon Light Cannon Launcher Rocket Launcher Special Weapon Field Lobotomy Kit Impact Weapon Mace Build | -11 -10 -10 -9 -9 -9 -8 -8 ------- Run | Yrd Mat Min Mat Min Exi Min Mat Slots Evolved 4 | . . . 2 . . . 2 Power . | . . . . . . . . Propulsion 2 | . . . 1 . . . 1 Utility 2 | . . . 1 . . . 1 Weapon . | . . . . . . . . Parts Attached 159 | 7 19 6 34 4 5 2 82 Power 11 | 1 2 . 4 . . 1 3 Engine 10 | 1 2 . 3 . . 1 3 Core 1 | . . . 1 . . . . Reactor . | . . . . . . . . Propulsion 65 | 2 7 2 14 3 2 1 34 Treads 27 | . 2 . 3 . . . 22 Leg 35 | 2 3 2 11 3 2 1 11 Wheel 2 | . 2 . . . . . . Hover . | . . . . . . . . Flight 1 | . . . . . . . 1 Utility 26 | 1 6 3 4 . 1 . 11 Device 5 | . . . 2 . 1 . 2 Storage 5 | 1 1 2 . . . . 1 Processor 3 | . 2 . . . . . 1 Hackware . | . . . . . . . . Protection 13 | . 3 1 2 . . . 7 Artifact . | . . . . . . . . Weapon 57 | 3 4 1 12 1 2 . 34 Energy Gun 20 | 3 2 1 4 1 . . 9 Energy Cannon 1 | . . . 1 . . . . Ballistic Gun 17 | . 1 . 5 . 1 . 10 Ballistic Cannon 1 | . 1 . . . . . . Launcher 5 | . . . . . . . 5 Special Weapon 1 | . . . . . 1 . . Impact Weapon 12 | . . . 2 . . . 10 Slashing Weapon . | . . . . . . . . Piercing Weapon . | . . . . . . . . Special Melee Weapon . | . . . . . . . . Unidentified Prototypes 3 | . . . . . 2 . 1 Parts Lost 23 | . 3 1 4 . . 2 13 Power 5 | . 1 . 2 . . 1 1 Propulsion 6 | . . . . . . 1 5 Utility 5 | . . . 1 . . . 4 Weapon 7 | . 2 1 1 . . . 3 Highest Loss Streak 2 | . 2 1 2 . . 2 2 To Critical Strikes . | . . . . . . . . Average Slot Usage (%) 97 | . 98 100 98 100 98 100 97 Engine 9 | . 13 14 8 11 11 11 8 Treads 20 | . 1 . 4 . . . 31 Leg 12 | . 24 28 28 33 32 33 4 Device 5 | . . . 9 11 11 11 4 Storage 10 | . 13 11 11 11 11 11 9 Processor 6 | . 6 . . . . . 8 Protection 10 | . 7 16 11 11 11 11 11 Energy Gun 9 | . 18 12 7 6 11 11 8 Ballistic Gun 5 | . 4 14 10 11 10 11 4 Impact Weapon 3 | . . . . 4 . . 4 Peak Build Rating 29 | 6 8 8 13 13 21 14 29 Average Rating 16 | 4 7 7 11 12 13 13 20 On Entrance 9 | . 6 7 8 13 13 14 13 Naked Turns . | . . . . . . . . Heaviest Build 45 | 12 17 28 33 33 33 33 45 Greatest Support 80 | 20 26 20 60 30 30 30 80 Greatest Overweight (x) 3 | 1 3 1 1 1 1 1 1 Average Overweight (x) . | . . . . 1 . 1 . Largest Inventory Capacity 15 | 8 8 15 15 15 15 15 15 Average Capacity 13 | 6 7 11 15 15 15 15 15 Most Carried 15 | 6 8 9 15 15 15 15 15 Average Carried 13 | 4 6 7 14 14 14 13 14 Final Capacity 15 | 8 8 15 15 15 15 15 15 Final Carried 15 | 6 8 9 15 15 15 13 13 Class Distribution -------------------- 75% | Scavenger-Mutant 22% | Mutant Dominant Class ---------------- Mutant | -10/Materials Mutant | -10/Mines Scavenger-Mutant | -9/Materials Scavenger-Mutant | -9/Mines Scavenger-Mutant | -9/Exiles Scavenger-Skirmisher | -8/Mines Scavenger-Mutant | -8/Materials Resources | -11 -10 -10 -9 -9 -9 -8 -8 ----------- Run | Yrd Mat Min Mat Min Exi Min Mat Matter Collected 2624 | 270 314 190 397 113 . 96 1244 Remotely . | . . . . . . . . Salvage Created 3144 | 91 327 76 746 215 . 149 1540 Parts 165 | 1 28 3 45 10 . 1 77 Haulers Intercepted 1 | . . . . . . . 1 Recyclers Shooed 2 | . . . . . . . 2 Parts Field Recycled . | . . . . . . . . Retrieved Matter . | . . . . . . . . Parts Self-Destructed . | . . . . . . . . Prevented . | . . . . . . . . Kills | -11 -10 -10 -9 -9 -9 -8 -8 ------- Run | Yrd Mat Min Mat Min Exi Min Mat Combat Hostiles Destroyed 69 | . 11 2 15 3 . 3 35 Guns 49 | . 11 1 11 3 . 3 20 Cannons 5 | . . 1 4 . . . . AOE 15 | . . . . . . . 15 Classes Destroyed 15 | 1 4 . 4 . . . 6 Worker 1 | . . . . . . . 1 Builder 6 | . . . 1 . . . 5 Hauler 1 | . . . . . . . 1 Recycler 3 | 1 . . . 1 . . 1 Operator 3 | . 1 . . . . . 2 Watcher 4 | . 2 . 1 . . . 1 Swarmer 9 | . 6 . . . . . 3 Grunt 42 | . 5 2 8 3 . 3 21 Brawler 2 | . . . 1 . . . 1 Duelist 2 | . . . 1 . . . 1 Protector 1 | . . . . . . . 1 Sentry 7 | . . . 5 . . . 2 Specialist 2 | . . . . . . . 2 Hunter 3 | . . . . . . . 3 Heavy 1 | . . . . . . . 1 Best Kill Streak 6 | 1 3 2 4 2 . 2 6 Combat Bots Only 6 | . 3 2 3 2 . 2 6 Max Kills in Single Turn 3 | 1 1 1 1 1 . 1 3 Gunslinging . | . . . . . . . . Exploded 3 | . . . . . . . 3 Melee . | . . . . . . . . Uniques/NPCs Destroyed . | . . . . . . . . Combat | -11 -10 -10 -9 -9 -9 -8 -8 -------- Run | Yrd Mat Min Mat Min Exi Min Mat Hostile Shots Fired 480 | . 105 24 91 24 . 27 209 Missed 119 | . 25 5 19 8 . 8 54 Damage Taken 5965 | . 944 248 1013 202 . 377 3181 Core 1083 | . 203 42 163 35 . 75 565 Absorbed by Shields . | . . . . . . . . Redirected to Shielding 129 | . 4 8 36 8 . 18 55 Core Remaining (%) 44 | 100 . 2 . . . 31 . Volleys Fired 260 | 1 47 9 54 7 . 12 130 Largest 2 | 2 2 2 2 2 . 2 2 Hottest 130 | 80 90 55 112 79 . 79 130 Shots Fired 498 | 2 91 17 108 14 . 24 242 Gun 419 | 2 80 9 83 14 . 24 207 Cannon 44 | . 11 8 25 . . . . Launcher 35 | . . . . . . . 35 Special . | . . . . . . . . Kinetic 172 | . 20 17 44 7 . 12 72 Thermal 270 | 1 53 . 64 7 . 12 133 Explosive 35 | . . . . . . . 35 Electromagnetic 21 | 1 18 . . . . . 2 Robot Hit Streak 13 | 1 8 9 13 9 . 8 11 Robot Miss Streak 4 | . 4 2 2 1 . 2 4 Penetration Max . | . . . . . . . . Secondary Targets 3 | . 2 . . 1 . . . Max Gunslinging Chain 1 | . 1 . . 1 . . . Shots Hit Robots 328 | 1 55 13 79 12 . 16 152 Core Hits 171 | 1 21 5 29 7 . 7 101 Critical Kills . | . . . . . . . . Critical Parts Destroyed 2 | . . . . . . . 2 Critical Strikes 9 | . 1 1 1 1 . 2 3 Burn 6 | . 1 . 1 1 . 2 1 Destroy 1 | . . . . . . . 1 Blast 1 | . . 1 . . . . . Smash 1 | . . . . . . . 1 Melee Attacks 77 | . . . 5 . . . 72 Impact 77 | . . . 5 . . . 72 Slashing . | . . . . . . . . Piercing . | . . . . . . . . Sneak Attacks 2 | . . . . . . . 2 Combat Hostiles . | . . . . . . . . Follow-up Attacks . | . . . . . . . . Damage Inflicted 6406 | 15 737 153 1008 180 . 243 4070 Guns 3668 | 15 588 56 661 180 . 243 1925 Cannons 556 | . 112 97 347 . . . . Explosions 2061 | . 37 . . . . . 2024 Melee 116 | . . . . . . . 116 Ramming 5 | . . . . . . . 5 Kinetic 1382 | . 132 153 244 91 . 127 635 Thermal 2678 | . 419 . 764 89 . 116 1290 Explosive 2024 | . . . . . . . 2024 Electromagnetic 201 | 15 186 . . . . . . Impact 116 | . . . . . . . 116 Slashing . | . . . . . . . . Piercing . | . . . . . . . . Highest Corruption 2 | . . . . . . . 2 Average Corruption 2 | . . . . . . . 2 Corruption Purged . | . . . . . . . . Corruption Blocked . | . . . . . . . . Effects 26 | . . . . . . . 26 Message Errors 6 | . . . . . . . 6 Matter Fused 6 | . . . . . . . 6 Heat Flow Errors 4 | . . . . . . . 4 Energy Discharges 2 | . . . . . . . 2 Parts Rejected 1 | . . . . . . . 1 Data Loss (minor) 5 | . . . . . . . 5 Data Loss (major) 1 | . . . . . . . 1 Weapon Failures 1 | . . . . . . . 1 Overload Shots . | . . . . . . . . Overflow Damage 93 | . . . . . . . 93 Projectiles . | . . . . . . . . Explosions 7 | . . . . . . . 7 Melee 86 | . . . . . . . 86 Knockbacks 6 | . 4 1 . . . . 1 Impact 1 | . . . . . . . 1 Kinetic 4 | . 3 1 . . . . . Secondary 1 | . 1 . . . . . . Self-Inflicted Damage 400 | . . . . . . . 400 Shots 11 | . . . . . . . 11 Rammed . | . . . . . . . . Targets Rammed 1 | . . . . . . . 1 Kicked 1 | . . . . . . . 1 Crushed . | . . . . . . . . Highest Temperature 599 | 18 508 199 448 54 . 183 599 Average Temperature 129 | 12 178 108 99 23 . 82 134 Received Heat Transfer 2163 | . 426 138 396 111 . 201 891 Effects 29 | . 13 . 2 . . . 14 Shutdowns 9 | . 4 . 1 . . . 4 Energy Bleed 4 | . 3 . . . . . 1 Interference 3 | . . . . . . . 3 Matter Decay 1 | . . . 1 . . . . Short Circuit 4 | . 4 . . . . . . Damage (minor) 4 | . 1 . . . . . 3 Damage (major) 2 | . . . . . . . 2 Damage (core) 2 | . 1 . . . . . 1 Siege Activations . | . . . . . . . . Robots Corrupted 1 | . . . . . . . 1 Combat Hostiles . | . . . . . . . . Parts Fried 4 | . . . . . . . 4 Impact Corruptions 2 | . . . . . . . 2 Robots Melted . | . . . . . . . . Combat Hostiles . | . . . . . . . . Parts Melted 15 | . 3 . 1 . . 2 9 Heat Transferred 7025 | . 1142 . 1887 296 . 444 3256 Parts Sabotaged . | . . . . . . . . Parts Stolen . | . . . . . . . . Parts Stripped . | . . . . . . . . Power Chain Reactions . | . . . . . . . . Alert | -11 -10 -10 -9 -9 -9 -8 -8 ------- Run | Yrd Mat Min Mat Min Exi Min Mat Peak Influence 834 | 5 230 202 279 169 . 50 834 Initial 64 | . 3 20 63 64 . . 19 Average 135 | 1 103 84 129 101 . 31 149 Maximum Alert Level 3 | . 1 1 1 . . . 3 Low Security (%) 79 | 100 85 97 82 100 . 100 76 Level 1 7 | . 14 2 17 . . . 4 Level 2 12 | . . . . . . . 19 Level 3 . | . . . . . . . . Level 4 . | . . . . . . . . Level 5 . | . . . . . . . . High Security . | . . . . . . . . Max Security . | . . . . . . . . Squads Dispatched 15 | . 1 . 1 . . . 13 Investigation 2 | . . . . . . . 2 Extermination . | . . . . . . . . Reinforcement 11 | . 1 . 1 . . . 9 Assault 1 | . . . . . . . 1 Garrison 1 | . . . . . . . 1 Intercept . | . . . . . . . . Searches Triggered . | . . . . . . . . Construction Impeded 3 | . . . . . . . 3 Haulers Reinforced . | . . . . . . . . Active Scanning Responses . | . . . . . . . . Cargo Convoy Interrupts . | . . . . . . . . Stealth | -11 -10 -10 -9 -9 -9 -8 -8 --------- Run | Yrd Mat Min Mat Min Exi Min Mat Distress Signals 7 | . 1 . 1 . . . 5 Communications Jammed . | . . . . . . . . Distress Signals . | . . . . . . . . Times Spotted 122 | . 21 7 25 5 . 3 61 Peak Tracking Total 7 | . 7 3 4 3 . 3 7 Tactical Retreats 17 | . 5 1 2 1 . . 8 Traps | -11 -10 -10 -9 -9 -9 -8 -8 ------- Run | Yrd Mat Min Mat Min Exi Min Mat Traps Triggered 2 | . . . 1 . . . 1 Indirectly . | . . . . . . . . Trap Hack Attempts . | . . . . . . . . Triggered . | . . . . . . . . Disarmed . | . . . . . . . . Reprogrammed . | . . . . . . . . Reused . | . . . . . . . . Traps Extracted . | . . . . . . . . Installed . | . . . . . . . . Triggered . | . . . . . . . . Machines | -11 -10 -10 -9 -9 -9 -8 -8 ---------- Run | Yrd Mat Min Mat Min Exi Min Mat Machines Disabled 5 | . 1 . 1 . . . 3 Max in Single Turn 1 | . 1 . 1 . . . 1 Garrison Access 1 | . . . . . . . 1 Machines Repaired . | . . . . . . . . Machines Dismantled . | . . . . . . . . Machines Sabotaged . | . . . . . . . . Overloaded Fab Kills . | . . . . . . . . Hacking | -11 -10 -10 -9 -9 -9 -8 -8 --------- Run | Yrd Mat Min Mat Min Exi Min Mat Machines Accessed 9 | . 2 . 1 . . . 6 Terminals 8 | . 2 . 1 . . . 5 Fabricators . | . . . . . . . . Repair Stations . | . . . . . . . . Recycling Units . | . . . . . . . . Scanalyzers . | . . . . . . . . Garrison Access 1 | . . . . . . . 1 Total Hacks 18 | . 2 . 1 . . . 15 Successful 10 | . 2 . 1 . . . 7 Failed 8 | . . . . . . . 8 Catastrophic 2 | . . . . . . . 2 Database Lockouts . | . . . . . . . . Manual 10 | . . . 1 . 1 . 8 Terminals 17 | . 2 . 1 . . . 14 Fabricators . | . . . . . . . . Repair Stations . | . . . . . . . . Recycling Units . | . . . . . . . . Scanalyzers . | . . . . . . . . Garrison Access 1 | . . . . . . . 1 Terminal Hacks 9 | . 2 . 1 . . . 6 Prototype ID Bank 1 | . . . . . . . 1 Level Access Points 1 | . . . . . . . 1 Branch Access Points 1 | . . . 1 . . . . Alert Level 3 | . . . . . . . 3 Unreport Threat 1 | . . . . . . . 1 Locate Traps 2 | . 2 . . . . . . Fabricator Hacks . | . . . . . . . . Repair Station Hacks . | . . . . . . . . Recycling Unit Hacks . | . . . . . . . . Scanalyzer . | . . . . . . . . Garrison Access Hacks 1 | . . . . . . . 1 Seal Access 1 | . . . . . . . 1 Unauthorized Hacks . | . . . . . . . . Terminals . | . . . . . . . . Fabricators . | . . . . . . . . Repair Stations . | . . . . . . . . Recycling Units . | . . . . . . . . Scanalyzers . | . . . . . . . . Garrison Access . | . . . . . . . . Data Cores Recovered . | . . . . . . . . Used . | . . . . . . . . Hacking Detections 6 | . . . 1 . . . 5 Full Trace Events 3 | . . . . . . . 3 Feedback Events . | . . . . . . . . Feedback Blocked . | . . . . . . . . Robot Schematics Acquired . | . . . . . . . . Robots Built . | . . . . . . . . Authchips . | . . . . . . . . Time . | . . . . . . . . Total Robot Build Rating . | . . . . . . . . Part Schematics Acquired . | . . . . . . . . Parts Built . | . . . . . . . . Authchips . | . . . . . . . . Time . | . . . . . . . . Total Part Build Rating . | . . . . . . . . Parts Repaired . | . . . . . . . . Time . | . . . . . . . . Parts Recycled . | . . . . . . . . Recycled Matter . | . . . . . . . . Retrieved Matter . | . . . . . . . . Retrieved Components . | . . . . . . . . Parts Scanalyzed . | . . . . . . . . Part Schematics Acquired . | . . . . . . . . Parts Damaged . | . . . . . . . . Bothacking | -11 -10 -10 -9 -9 -9 -8 -8 ------------ Run | Yrd Mat Min Mat Min Exi Min Mat Used RIF Installer . | . . . . . . . . Robots Hacked . | . . . . . . . . Non-combat . | . . . . . . . . Combat . | . . . . . . . . Robot Hacks Applied . | . . . . . . . . Relay Couplers Released . | . . . . . . . . Fabnet Peak Effective % . | . . . . . . . . Robots Rewired . | . . . . . . . . Allies Hacked . | . . . . . . . . Hacks Repelled . | . . . . . . . . Allies | -11 -10 -10 -9 -9 -9 -8 -8 -------- Run | Yrd Mat Min Mat Min Exi Min Mat Total Allies 2 | . . 2 . . . . . Largest Group 2 | . . 2 . . . . . Highest-Rated Group 49 | . . 49 . . . . . Highest-Rated Ally 31 | . . 31 . . . . . Total Orders . | . . . . . . . . Ally Attacks 18 | . . 18 . . . . . Total Damage 257 | . . 257 . . . . . Kills 4 | . . 4 . . . . . Allies Corrupted . | . . . . . . . . Allies Melted . | . . . . . . . . Intel | -11 -10 -10 -9 -9 -9 -8 -8 ------- Run | Yrd Mat Min Mat Min Exi Min Mat Robot Analysis Total . | . . . . . . . . Derelict Logs Recovered 1 | . . 1 . . . . . Drone Launches . | . . . . . . . . Drone Recoveries . | . . . . . . . . Exploration | -11 -10 -10 -9 -9 -9 -8 -8 ------------- Run | Yrd Mat Min Mat Min Exi Min Mat Turns Passed 10320 | 69 1338 220 1333 283 442 84 6551 Spaces Moved 4663 | 51 954 109 565 129 229 23 2603 Core 46 | 20 26 . . . . . . Treads 2282 | . 15 . 64 . . . 2203 Legs 2254 | 31 832 109 501 129 229 23 400 Wheels 81 | . 81 . . . . . . Hover . | . . . . . . . . Flight . | . . . . . . . . Fastest Speed 50 | 50 90 120 120 190 120 190 120 Average Speed 155 | 99 120 159 183 190 188 190 157 Slowest Speed 250 | 120 200 190 190 190 190 190 250 Overloaded Moves . | . . . . . . . . Propulsion Burnouts . | . . . . . . . . Robots Hopped . | . . . . . . . . Cave-ins Triggered . | . . . . . . . . Exploration Rate (%) 40 | 4 95 24 39 31 60 7 67 Regions Visited 7 Branch Regions 4 Pre-discovered Areas . | . . . . . . . . Known Exits Taken 4 | . 1 1 1 . . 1 . Unknown Exits Taken 3 | 1 . . . 1 1 . . Scrap Searched 1 | . . 1 . . . . . Spaces Dug 63 | . . . 4 . . . 59 Terrain Destroyed 248 | . . . 4 . . . 244 Melee 59 | . . . 4 . . . 55 Projectile . | . . . . . . . . AOE 189 | . . . . . . . 189 Terrain Rammed . | . . . . . . . . Walls Destroyed . | . . . . . . . . Machines Disabled . | . . . . . . . . Actions | -11 -10 -10 -9 -9 -9 -8 -8 --------- Run | Yrd Mat Min Mat Min Exi Min Mat Total 7123 | 64 1054 141 759 155 240 40 4670 Wait 1814 | . 13 8 65 11 . 4 1713 Move 4656 | 50 953 108 564 128 228 22 2603 Hop . | . . . . . . . . Pick Up 74 | 6 11 5 19 1 2 . 30 Fast Attach 33 | 6 4 2 5 . 3 . 13 Attach 27 | . 6 . 5 . 1 2 13 Detach 6 | . 3 . . . . . 3 Swap 99 | 1 9 4 24 4 1 . 56 Drop 76 | . 8 5 18 4 5 . 36 Fire 260 | 1 47 9 54 7 . 12 130 Melee 77 | . . . 5 . . . 72 Ram . | . . . . . . . . Kick 1 | . . . . . . . 1 Crush . | . . . . . . . . Escape Stasis . | . . . . . . . . Rewire . | . . . . . . . . Trap . | . . . . . . . . Miscellaneous . | . . . . . . . . Route ------- -11/Scrapyard -10/Materials (discovered 5 exits: *Mat x3 / *Min x2) -10/Mines -9/Materials (discovered 2 exits: Mat / *Min) -9/Mines (discovered 2 exits: *Mat / *Exi) -9/Exiles -8/Mines -8/Materials (discovered 5 exits: *Fac x3 / [*Sto x2]) History --------- Turn | Location | Event 16 | -11/Scrapyard | Discovered new exit (range 16) 70 | -11/Scrapyard | Entered Materials 110 | -10/Materials | Discovered new exit (range 16) 164 | -10/Materials | Discovered new exit (range 11) 317 | -10/Materials | Build established: Mutant 370 | -10/Materials | Discovered new exit (range 3) 521 | -10/Materials | Core integrity fell below 50% 625 | -10/Materials | Discovered new exit (range 6) 881 | -10/Materials | Discovered new exit (range 11) 1112 | -10/Materials | Identified exit to Materials 1138 | -10/Materials | Identified exit to Mines 1294 | -10/Materials | Core integrity fell below 20% 1408 | -10/Materials | Entered Mines 1580 | -10/Mines | Discovered exit to Materials (range 6) 1599 | -10/Mines | Learned 2 Materials zone layouts 1628 | -10/Mines | Entered Materials 1628 | -9/Materials | Evolved 2 slots: Propulsion x1, Utility x1 1629 | -9/Materials | Identified exit to Materials 2209 | -9/Materials | Identified exit to Mines 2284 | -9/Materials | Build established: Scavenger-Mutant 2961 | -9/Materials | Entered Mines 2969 | -9/Mines | Discovered exit to Materials (range 6) 2984 | -9/Mines | Received a Rocket Launcher from a helpful Derelict 3235 | -9/Mines | Deemed a non-threat by the Exiles lab entrance 3237 | -9/Mines | Discovered new exit (range 5) 3244 | -9/Mines | Entered Exiles 3292 | -9/Exiles | Met 8R-AWN 3324 | -9/Exiles | Met EX-HEX 3377 | -9/Exiles | Met EX-BIN 3398 | -9/Exiles | Aligned with FarCom system 3400 | -9/Exiles | Given EX-Vault access code 3444 | -9/Exiles | Opened EX-Vault 3452 | -9/Exiles | Found Prototype Special Weapon 3453 | -9/Exiles | Identified Field Lobotomy Kit 3457 | -9/Exiles | Found Prototype Leg 3457 | -9/Exiles | Identified Potential Leg 3517 | -9/Exiles | Warned to stay clear of 0b10 Research branches 3570 | -9/Exiles | Met EX-DEC 3665 | -9/Exiles | Discovered new exit (range 14) 3686 | -9/Exiles | Left Exiles lab with Field Lobotomy Kit 3686 | -9/Exiles | Entered Mines 3688 | -8/Mines | Core integrity fell below 50% 3746 | -8/Mines | Discovered exit to Materials (range 7) 3770 | -8/Mines | Entered Materials 3770 | -8/Materials | Evolved 2 slots: Propulsion x1, Utility x1 4533 | -8/Materials | Discovered new exit (range 6) 8457 | -8/Materials | Core integrity fell below 50% 9000 | -8/Materials | Garrison activated, responded to threat 9241 | -8/Materials | Discovered new exit (range 16) 9253 | -8/Materials | Identified exit to Factory 9699 | -8/Materials | Discovered new exit (range 11) 10170 | -8/Materials | First assault squad dispatched 10302 | -8/Materials | Core integrity fell below 20% 10321 | -8/Materials | Destroyed by L-31 Rogue with Katana Last Messages --------------- 10292_ K-01 Serf collects debris. 10294_ The unstable cave ceiling collapses. 10294_ Penetrated by Slug. 10295_ System corrupted: Heat flow error (+297). 10297_ Penetrated by Slug. 10300_ Critical hit (Burn: +37). 10300_ Penetrated by Slug. 10301_ The unstable cave ceiling collapses. 10301_ G-50 Soldier destroyed. 10304_ Slug penetrates L-31 Rogue. 10307_ Power failure, Rnf. Ion Engine shutdown. 10307_ Penetrated by Slug. 10307_ H-55 Commando destroyed. 10311_ The unstable cave ceiling collapses. 10312_ Imp. Light Armor Plating destroyed. 10312_ Destroyed Imp. Light Armor Plating. 10312_ Arm. Treads severed. 10314_ Overheating: Mni. Grenade Launcher damaged (-29). 10315_ The unstable cave ceiling collapses. 10320_ Destroyed Imp. Aluminum Leg. Map ----- +----------------------------------------------------+ | ????????????????????????????????????????????? | | ????????????????????????????????????????????? | | ????????????????????????????????????????????? | | ????????????????????????????????????????????? | | ????????????????????????????????????????????? | | ????????????????????????????????????????????? | | ????????????????????????????????????????????? | | ????????????????????????????????????????????? | | ????????????????????????????????????????????? | | ????????????????????????????????????????????? | | ????????????????????????????????????????????? | | ??????????????????????????#?????????????????? | | ???????????????########## ??????????????????? | | ???????????????# ^^ T g ???????????????????? | | ??????????????##^ ^ %#????????????????????? | | ????????????#### ^ ##???????????????????? | | ????????????# [ ##??????????????????? | | ????????????# % ##?????????????????? | | ????????????# #???????Y?????????? | | ????????????# / ##???????????????? | | ????????????# #" # # ##?????# ???? | | ????????????# # # #???############ | | ????????????# % # #???##! # | | ??###?####### !# #???## # | | ??###########+##; #???## "" # | | ??# # @ #????## " " " # | | ??# """ "# """ =l #?????# "G" " # | | ??# """ "# """ ####### """ ## | | ??#[ """ "# """ % ###### ### | | ??# T# """ ########+##### | | ??# """ "# """ | | ??# """ "# % | | ??# """ "# # | | ??# # ###a### ##+########## | | ??#####+#### ""### ### #### [ # | | ????## + T"### ### ## ## | | ##### ### ""### ### !!! ##= ## | | ###### ###* ### ### !! ## ## | | # # #######+#### ### !! ## ## | | # # ####### #### ###! ## ## | | # # #######+####+### ## ## | | # # + ## ## """ ## | | # < + ##### ##"S ## """ ##### | | # # ##### ##""" ! ## """ ##??# | | # # ##### ## "" ## ##### | | # # # ### " " ] ## ############# | | # # ##### "R" ] ###### ###### # | | ###### ##?## """ ] ############# # | | ????## ##### ###??####??## # | | ????## #########+#######????????## # | +----------------------------------------------------+ Best States ------------- Heat Dissipation 45 Energy Generation 14 Energy Capacity 265 Matter Stores 300 Matter Capacity 300 Sight Range 18 Robot Scan Range 14 Terrain Scan Density 10 Armor Coverage 300 Core Shielding 20 Power Shielding 66 Utility Shielding 66 Evasion (%) 55 Targeting Accuracy 5 Recoil Reduction 4 Item Schematics ----------------- None Robot Schematics ------------------ None Fabricated ------------ Nothing Alien Tech Used ----------------- None Achievements -------------- None Challenges ------------ None Game ------ Seed MediumTractorScrap Manual? 0 Play Time 01:33:04 Cumulative 27.5 hours Start 2024.10.27 @ 07:09:52 End 2024.10.27 @ 08:42:33 Sessions 1 Manual Loads 0 Difficulty Rogue Special Mode None Game No. 35 Rogue 28 Adventurer 0 Explorer 7 Win Type - Total 1 Types 1/0/0/0/0/0/0/0/0 Lore% 11 Gallery% 20 Achievement% 25 Wizard Run 0 Options --------- Layout 0 ASCII 0 Keyboard 0 Movement Mouse Keybinds 0 Fullscreen 1 Font 24/Terminus Map View 76x50 Zoom Use 0% Tactical HUD 1 Map Filters NONE Filters NONE Steam 1 RUN: 8a4cb690-a989-44b2-98d6-c0460b5aefb0